[Event "NJSK 2018 Jeugd C"]
[Site "Assen, Netherlands"]
[Date "2018.04.29"]
[Round "1.12"]
[White "Boghossian, Wahe"]
[Black "Franke, Daniel"]
[Result "1-0"]
[TimeControl "40/90m+30sec/move"]
[WhiteElo "1748"]
[BlackElo "1298"]

1. e4 {[%clk 01:30:59]} {[%emt 00:00:02]} c5 {[%clk 01:31:00]} 2. Nf3 {[%clk
01:31:21]} {[%emt 00:00:08]} Nc6 {[%clk 01:31:29]} {[%emt 00:00:02]} 3. d4
{[%clk 01:31:44]} {[%emt 00:00:08]} cxd4 {[%clk 01:31:56]} {[%emt 00:00:02]} 4.
Nxd4 {[%clk 01:32:08]} {[%emt 00:00:04]} e5 {[%clk 01:32:22]} {[%emt 00:00:06]}
5. Nb3 {[%clk 01:32:27]} {[%emt 00:00:12]} Nf6 {[%clk 01:32:42]} {[%emt
00:00:07]} 6. Bd3 {[%clk 01:29:21]} {[%emt 00:03:36]} Be7 {[%clk 01:32:41]}
{[%emt 00:00:31]} 7. O-O {[%clk 01:29:25]} {[%emt 00:00:25]} O-O {[%clk
01:33:05]} {[%emt 00:00:06]} 8. Nc3 {[%clk 01:29:16]} {[%emt 00:00:39]} b6
{[%clk 01:32:54]} {[%emt 00:00:42]} 9. Re1 {[%clk 01:27:54]} {[%emt 00:01:51]}
Bb7 {[%clk 01:32:04]} {[%emt 00:01:21]} 10. a3 {[%clk 01:20:25]} {[%emt
00:07:59]} Qc7 {[%clk 01:29:42]} {[%emt 00:02:52]} 11. Bg5 {[%clk 01:04:55]}
{[%emt 00:15:59]} Rad8 {[%clk 01:23:32]} {[%emt 00:06:40]} 12. Qd2 {[%clk
01:01:06]} {[%emt 00:04:19]} Rfe8 {[%clk 01:18:57]} {[%emt 00:05:06]} 13. Rad1
{[%clk 01:00:05]} {[%emt 00:01:30]} Rc8 {[%clk 01:04:03]} {[%emt 00:15:24]} 14.
Nb5 {[%clk 00:52:45]} {[%emt 00:07:50]} Qb8 {[%clk 01:01:14]} {[%emt 00:03:20]}
15. Bf1 {[%clk 00:41:45]} {[%emt 00:11:30]} d6 {[%clk 00:37:28]} {[%emt
00:24:16]} 16. Bxf6 {[%clk 00:38:32]} {[%emt 00:03:42]} Bxf6 {[%clk 00:36:28]}
{[%emt 00:01:30]} 17. Qxd6 {[%clk 00:37:11]} {[%emt 00:01:51]} Qxd6 {[%clk
00:33:49]} {[%emt 00:03:09]} 18. Nxd6 {[%clk 00:37:22]} {[%emt 00:00:20]} Rb8
{[%clk 00:33:33]} {[%emt 00:00:46]} 19. Nxe8 {[%clk 00:37:36]} {[%emt
00:00:15]} Rxe8 {[%clk 00:34:02]} {[%emt 00:00:02]} 20. c3 {[%clk 00:36:13]}
{[%emt 00:01:52]} a6 {[%clk 00:31:40]} {[%emt 00:02:52]} 21. Rd7 {[%clk
00:35:39]} {[%emt 00:01:04]} Rb8 {[%clk 00:31:51]} {[%emt 00:00:19]} 22. Bc4
{[%clk 00:34:40]} {[%emt 00:01:29]} Nd8 {[%clk 00:31:41]} {[%emt 00:00:41]} 23.
Rd6 {[%emt 00:03:51]} b5 {[%clk 00:30:54]} {[%emt 00:00:53]} 24. Bf1 {[%clk
00:30:10]} {[%emt 00:02:02]} Nc6 {[%clk 00:21:54]} {[%emt 00:09:31]} 25. Nc5
{[%clk 00:28:27]} {[%emt 00:02:13]} Ba8 {[%clk 00:20:57]} {[%emt 00:01:27]} 26.
Nd7 {[%clk 00:28:26]} {[%emt 00:00:29]} Be7 {[%clk 00:16:38]} {[%emt 00:04:50]}
27. Rxc6 {[%clk 00:28:33]} {[%emt 00:00:23]} Rd8 {[%clk 00:15:21]} {[%emt
00:01:47]} 28. Rc7 {[%clk 00:28:54]} {[%emt 00:00:09]} Bd6 {[%clk 00:12:54]}
{[%emt 00:02:58]} 29. Ra7 {[%clk 00:29:01]} {[%emt 00:00:21]} Bc6 {[%clk
00:08:22]} {[%emt 00:05:04]} 30. Rxa6 {[%clk 00:27:43]} {[%emt 00:01:48]} Bxe4
{[%clk 00:08:00]} {[%emt 00:00:52]} 31. Rxd6 {[%clk 00:27:49]} {[%emt
00:00:23]} 1-0

[Event "NJSK 2018 Jeugd C"]
[Site "Assen, Netherlands"]
[Date "2018.04.30"]
[Round "2.1"]
[White "Van Foreest, Machteld"]
[Black "Shakhverdian, William"]
[Result "1-0"]
[TimeControl "40/90m+30sec/move"]
[WhiteElo "2132"]
[BlackElo "1777"]

1. e4 {[%clk 01:30:57]} {[%emt 00:00:02]} e5 {[%clk 01:30:56]} {[%emt
00:00:05]} 2. Nf3 {[%clk 01:31:23]} {[%emt 00:00:04]} Nc6 {[%clk 01:31:19]}
{[%emt 00:00:07]} 3. Bc4 {[%clk 01:31:36]} {[%emt 00:00:17]} Bc5 {[%clk
01:31:36]} {[%emt 00:00:12]} 4. c3 {[%clk 01:32:01]} {[%emt 00:00:05]} Nf6
{[%clk 01:31:53]} {[%emt 00:00:12]} 5. d3 {[%clk 01:32:28]} {[%emt 00:00:03]}
O-O {[%clk 01:31:15]} {[%emt 00:01:08]} 6. Bb3 {[%clk 01:31:18]} {[%emt
00:01:40]} d6 {[%clk 01:31:22]} {[%emt 00:00:24]} 7. Bg5 {[%clk 01:31:32]}
{[%emt 00:00:16]} Be6 {[%clk 01:24:58]} {[%emt 00:06:53]} 8. Nbd2 {[%clk
01:29:17]} {[%emt 00:02:45]} h6 {[%clk 01:14:40]} {[%emt 00:10:49]} 9. Bh4
{[%clk 01:28:49]} {[%emt 00:00:58]} a5 {[%clk 01:10:56]} {[%emt 00:04:14]} 10.
Nf1 {[%clk 01:24:24]} {[%emt 00:04:51]} g5 {[%clk 00:51:53]} {[%emt 00:19:37]}
11. Bg3 {[%clk 01:20:34]} {[%emt 00:04:19]} Bb6 {[%clk 00:41:01]} {[%emt
00:11:23]} 12. Bc2 {[%clk 01:15:10]} {[%emt 00:05:54]} Bg4 {[%clk 00:28:28]}
{[%emt 00:13:03]} 13. h4 {[%clk 01:07:18]} {[%emt 00:08:22]} Bxf3 {[%clk
00:26:29]} {[%emt 00:02:28]} 14. gxf3 {[%clk 01:06:46]} {[%emt 00:01:01]} Kg7
{[%clk 00:20:44]} {[%emt 00:06:16]} 15. Qd2 {[%clk 01:04:40]} {[%emt 00:02:36]}
Nd7 {[%clk 00:17:31]} {[%emt 00:03:44]} 16. O-O-O {[%clk 01:03:25]} {[%emt
00:01:45]} f6 {[%clk 00:15:15]} {[%emt 00:02:47]} 17. Ne3 {[%clk 01:02:03]}
{[%emt 00:01:50]} Ne7 {[%clk 00:15:06]} {[%emt 00:00:40]} 18. Rdg1 {[%clk
01:01:47]} {[%emt 00:00:45]} Nc5 {[%clk 00:12:21]} {[%emt 00:03:15]} 19. f4
{[%clk 00:57:52]} {[%emt 00:04:25]} exf4 {[%clk 00:11:50]} {[%emt 00:01:02]} 20.
Bxf4 {[%clk 00:58:10]} {[%emt 00:00:12]} Ne6 {[%clk 00:12:09]} {[%emt
00:00:10]} 21. Bh2 {[%clk 00:56:48]} {[%emt 00:01:52]} Kf7 {[%clk 00:11:50]}
{[%emt 00:00:49]} 22. Bb3 {[%clk 00:55:16]} {[%emt 00:02:01]} a4 {[%clk
00:11:51]} {[%emt 00:00:30]} 23. Bc4 {[%clk 00:54:48]} {[%emt 00:00:59]} c6
{[%clk 00:11:20]} {[%emt 00:01:01]} 24. Ng4 {[%clk 00:47:04]} {[%emt 00:08:14]}
Rh8 {[%clk 00:07:47]} {[%emt 00:04:03]} 25. Nxh6+ {[%clk 00:41:57]} {[%emt
00:05:36]} Rxh6 {[%clk 00:07:51]} {[%emt 00:00:26]} 26. hxg5 {[%clk 00:42:18]}
{[%emt 00:00:09]} fxg5 {[%clk 00:07:17]} {[%emt 00:01:04]} 27. Qxg5 {[%clk
00:42:14]} {[%emt 00:00:33]} Qh8 {[%clk 00:03:53]} {[%emt 00:03:55]} 28. Bxd6
{[%clk 00:42:09]} {[%emt 00:00:35]} Ng8 {[%clk 00:02:24]} {[%emt 00:02:00]} 29.
Qf5+ {[%clk 00:41:27]} {[%emt 00:01:11]} Qf6 {[%clk 00:01:59]} {[%emt
00:00:55]} 30. Bxe6+ {[%clk 00:41:49]} {[%emt 00:00:08]} 1-0

[Event "NJSK 2018 Jeugd C"]
[Site "Assen, Netherlands"]
[Date "2018.04.30"]
[Round "2.2"]
[White "Cchung, Nyuk Lyn"]
[Black "Elgersma, Onno"]
[Result "1/2-1/2"]
[TimeControl "40/90m+30sec/move"]
[WhiteElo "1796"]
[BlackElo "2060"]

1. e4 {[%clk 01:30:57]} {[%emt 00:00:02]} e6 {[%clk 01:30:56]} {[%emt
00:00:05]} 2. d4 {[%clk 01:31:22]} {[%emt 00:00:04]} d5 {[%clk 01:31:19]}
{[%emt 00:00:08]} 3. Nc3 {[%clk 01:31:45]} {[%emt 00:00:06]} Nf6 {[%clk
01:31:44]} {[%emt 00:00:06]} 4. e5 {[%clk 01:32:07]} {[%emt 00:00:07]} Nfd7
{[%clk 01:32:11]} {[%emt 00:00:04]} 5. f4 {[%clk 01:32:28]} {[%emt 00:00:08]}
c5 {[%clk 01:32:33]} {[%emt 00:00:09]} 6. Nf3 {[%clk 01:32:52]} {[%emt
00:00:05]} Qb6 {[%clk 01:32:45]} {[%emt 00:00:20]} 7. Na4 {[%clk 01:29:33]}
{[%emt 00:03:48]} Qa5+ {[%clk 01:33:09]} {[%emt 00:00:06]} 8. Nc3 {[%clk
01:27:08]} {[%emt 00:02:55]} Nc6 {[%clk 01:27:05]} {[%emt 00:06:34]} 9. Be3
{[%clk 01:05:56]} {[%emt 00:21:42]} Qb6 {[%clk 01:10:13]} {[%emt 00:17:23]} 10.
Na4 {[%clk 01:05:44]} {[%emt 00:00:42]} Qa5+ {[%clk 01:09:56]} {[%emt
00:00:47]} 11. c3 {[%clk 01:06:06]} {[%emt 00:00:08]} cxd4 {[%clk 01:10:16]}
{[%emt 00:00:10]} 12. b4 {[%clk 01:06:25]} {[%emt 00:00:10]} Qc7 {[%clk
01:10:42]} {[%emt 00:00:05]} 13. Nxd4 {[%clk 01:05:42]} {[%emt 00:01:12]} a6
{[%clk 01:09:59]} {[%emt 00:01:14]} 14. a3 {[%clk 01:05:20]} {[%emt 00:00:52]}
Be7 {[%clk 01:02:47]} {[%emt 00:07:42]} 15. Bd3 {[%clk 01:04:12]} {[%emt
00:01:37]} b5 {[%clk 00:55:16]} {[%emt 00:08:03]} 16. Nb2 {[%clk 01:03:01]}
{[%emt 00:01:40]} Nb6 {[%clk 00:53:22]} {[%emt 00:02:24]} 17. O-O {[%clk
01:02:05]} {[%emt 00:01:24]} g6 {[%clk 00:52:49]} {[%emt 00:01:04]} 18. Qf3
{[%clk 00:54:47]} {[%emt 00:07:47]} Bb7 {[%clk 00:48:56]} {[%emt 00:04:24]} 19.
Rac1 {[%clk 00:47:21]} {[%emt 00:07:56]} Rc8 {[%clk 00:41:49]} {[%emt
00:07:37]} 20. Qh3 {[%clk 00:43:33]} {[%emt 00:04:17]} Nc4 {[%clk 00:31:03]}
{[%emt 00:11:17]} 21. Nxc4 {[%clk 00:42:06]} {[%emt 00:01:56]} bxc4 {[%clk
00:20:25]} {[%emt 00:11:09]} 22. Bc2 {[%clk 00:41:09]} {[%emt 00:01:26]} Nxd4
{[%clk 00:20:05]} {[%emt 00:00:51]} 23. Bxd4 {[%clk 00:41:19]} {[%emt
00:00:19]} Qc6 {[%clk 00:12:44]} {[%emt 00:07:52]} 24. a4 {[%clk 00:37:41]}
{[%emt 00:04:08]} a5 {[%clk 00:04:39]} {[%emt 00:08:35]} 25. bxa5 {[%clk
00:33:46]} {[%emt 00:04:26]} Bc5 {[%clk 00:04:52]} {[%emt 00:00:17]} 26. Qe3
{[%clk 00:33:54]} {[%emt 00:00:20]} Bxd4 {[%clk 00:04:52]} {[%emt 00:00:31]} 27.
Qxd4 {[%clk 00:34:14]} {[%emt 00:00:10]} Ke7 {[%clk 00:02:10]} {[%emt
00:03:13]} 28. Rb1 {[%clk 00:34:05]} {[%emt 00:00:39]} Ba8 {[%clk 00:01:51]}
{[%emt 00:00:50]} 29. Rb5 {[%clk 00:33:32]} {[%emt 00:01:02]} Rc7 {[%clk
00:01:10]} {[%emt 00:01:12]} 30. Rfb1 {[%clk 00:33:40]} {[%emt 00:00:21]} Rhc8
{[%clk 00:01:06]} {[%emt 00:00:35]} 31. Kf2 {[%clk 00:33:25]} {[%emt 00:00:44]}
Qa6 {[%clk 00:00:57]} {[%emt 00:00:39]} 32. Bd1 {[%clk 00:32:15]} {[%emt
00:01:39]} Ke8 {[%clk 00:00:52]} {[%emt 00:00:36]} 33. Qb6 {[%clk 00:30:11]}
{[%emt 00:02:33]} Rc6 {[%clk 00:00:57]} {[%emt 00:00:27]} 34. Qd4 {[%clk
00:29:33]} {[%emt 00:01:07]} R6c7 {[%clk 00:01:20]} {[%emt 00:00:07]} 35. Qb6
{[%clk 00:26:32]} {[%emt 00:03:31]} Rc6 {[%clk 00:01:40]} {[%emt 00:00:11]} 36.
Qxa6 {[%clk 00:26:17]} {[%emt 00:00:44]} Rxa6 {[%clk 00:02:08]} {[%emt
00:00:02]} 37. Bf3 {[%clk 00:26:04]} {[%emt 00:00:43]} Bc6 {[%clk 00:02:08]}
{[%emt 00:00:31]} 38. Rc5 {[%clk 00:25:46]} {[%emt 00:00:48]} Kd7 {[%clk
00:02:00]} {[%emt 00:00:38]} 39. Bd1 {[%clk 00:25:02]} {[%emt 00:01:13]} Kc7
{[%clk 00:00:57]} {[%emt 00:01:34]} 40. h4 {[%clk 00:23:17]} {[%emt 00:02:14]}
Rca8 {[%clk 00:00:57]} {[%emt 00:00:31]} 41. Rbb5 {[%clk 00:23:17]} {[%emt
00:00:29]} h5 {[%clk 00:00:49]} {[%emt 00:00:38]} 42. Ke3 {[%clk 00:22:29]}
{[%emt 00:01:17]} R8a7 {[%clk 00:00:39]} {[%emt 00:00:41]} 43. Kd2 {[%clk
00:21:44]} {[%emt 00:01:15]} Ra8 {[%clk 00:00:50]} {[%emt 00:00:19]} 44. Kc1
{[%clk 00:21:08]} {[%emt 00:01:06]} R8a7 {[%clk 00:00:41]} {[%emt 00:00:40]} 45.
Kb2 {[%clk 00:20:56]} {[%emt 00:00:41]} Ra8 {[%clk 00:00:48]} {[%emt 00:00:23]}
46. Ka3 {[%clk 00:20:52]} {[%emt 00:00:34]} R8a7 {[%clk 00:00:56]} {[%emt
00:00:22]} 47. Kb4 {[%clk 00:20:34]} {[%emt 00:00:48]} Ra8 {[%clk 00:01:06]}
{[%emt 00:00:20]} 48. Ka3 {[%clk 00:08:57]} {[%emt 00:12:07]} R8a7 {[%clk
00:01:25]} {[%emt 00:00:11]} 49. Kb2 {[%clk 00:09:12]} {[%emt 00:00:14]} Ra8
{[%clk 00:01:36]} {[%emt 00:00:20]} 50. Kc1 {[%clk 00:09:37]} {[%emt 00:00:05]}
R8a7 {[%clk 00:01:43]} {[%emt 00:00:24]} 51. Kd2 {[%clk 00:09:57]} {[%emt
00:00:09]} Ra8 {[%clk 00:01:37]} {[%emt 00:00:36]} 52. Ke3 {[%clk 00:10:19]}
{[%emt 00:00:07]} R8a7 {[%clk 00:01:41]} {[%emt 00:00:27]} 53. Kf2 {[%clk
00:10:27]} {[%emt 00:00:21]} Ra8 {[%clk 00:01:40]} {[%emt 00:00:32]} 54. g4
{[%clk 00:10:33]} {[%emt 00:00:23]} hxg4 {[%clk 00:01:16]} {[%emt 00:00:55]} 55.
Kg3 {[%clk 00:10:31]} {[%emt 00:00:31]} R8a7 {[%clk 00:00:50]} {[%emt
00:00:57]} 56. Kxg4 {[%clk 00:10:19]} {[%emt 00:00:41]} Kd8 {[%clk 00:00:39]}
{[%emt 00:00:42]} 57. Rb6 {[%clk 00:09:29]} {[%emt 00:01:20]} Bd7 {[%clk
00:00:46]} {[%emt 00:00:23]} 58. Rxa6 {[%clk 00:07:01]} {[%emt 00:02:58]} Rxa6
{[%clk 00:01:12]} {[%emt 00:00:04]} 59. Kg5 {[%clk 00:07:20]} {[%emt 00:00:10]}
Ke7 {[%clk 00:01:23]} {[%emt 00:00:19]} 60. h5 {[%clk 00:07:16]} {[%emt
00:00:33]} gxh5 {[%clk 00:01:48]} {[%emt 00:00:05]} 61. Kxh5 {[%clk 00:07:43]}
{[%emt 00:00:03]} f6 {[%clk 00:01:16]} {[%emt 00:01:02]} 62. Kg4 {[%clk
00:05:11]} {[%emt 00:03:01]} Bc6 {[%clk 00:00:59]} {[%emt 00:00:47]} 63. Bc2
{[%clk 00:05:12]} {[%emt 00:00:31]} fxe5 {[%clk 00:01:11]} {[%emt 00:00:18]} 64.
fxe5 {[%clk 00:05:30]} {[%emt 00:00:11]} Kd7 {[%clk 00:01:21]} {[%emt
00:00:20]} 65. Kf4 {[%clk 00:05:22]} {[%emt 00:00:37]} Ra8 {[%clk 00:00:59]}
{[%emt 00:00:52]} 66. Ke3 {[%clk 00:05:23]} {[%emt 00:00:29]} Ra6 {[%clk
00:00:50]} {[%emt 00:00:40]} 67. Bd1 {[%clk 00:05:07]} {[%emt 00:00:45]} Kc7
{[%clk 00:00:55]} {[%emt 00:00:26]} 68. Bg4 {[%clk 00:05:11]} {[%emt 00:00:24]}
Kd7 {[%clk 00:01:17]} {[%emt 00:00:10]} 69. Kd4 {[%clk 00:05:05]} {[%emt
00:00:35]} Ke7 {[%clk 00:01:23]} {[%emt 00:00:25]} 1/2-1/2

[Event "NJSK 2018 Jeugd C"]
[Site "Assen, Netherlands"]
[Date "2018.04.30"]
[Round "2.3"]
[White "Pham, Khoi"]
[Black "Boghossian, Wahe"]
[Result "1/2-1/2"]
[TimeControl "40/90m+30sec/move"]
[WhiteElo "1983"]
[BlackElo "1748"]

1. e4 {[%clk 01:30:57]} {[%emt 00:00:02]} c5 {[%clk 01:30:57]} {[%emt
00:00:04]} 2. Nf3 {[%clk 01:31:14]} {[%emt 00:00:13]} d6 {[%clk 01:31:24]}
{[%emt 00:00:03]} 3. d4 {[%clk 01:31:33]} {[%emt 00:00:12]} cxd4 {[%clk
01:31:50]} {[%emt 00:00:04]} 4. Nxd4 {[%clk 01:31:55]} {[%emt 00:00:07]} Nf6
{[%clk 01:32:13]} {[%emt 00:00:07]} 5. Nc3 {[%clk 01:32:21]} {[%emt 00:00:05]}
Nc6 {[%clk 01:31:56]} {[%emt 00:00:47]} 6. Bg5 {[%clk 01:32:09]} {[%emt
00:00:42]} e6 {[%clk 01:31:01]} {[%emt 00:01:25]} 7. Qd2 {[%clk 01:31:42]}
{[%emt 00:00:57]} h6 {[%clk 01:29:47]} {[%emt 00:01:44]} 8. Bh4 {[%clk
01:30:20]} {[%emt 00:01:52]} Be7 {[%clk 01:24:20]} {[%emt 00:05:56]} 9. f3
{[%clk 01:24:19]} {[%emt 00:06:31]} Nxe4 {[%clk 01:13:33]} {[%emt 00:11:17]} 10.
Bxe7 {[%clk 01:09:37]} {[%emt 00:15:12]} Nxd2 {[%clk 01:13:49]} {[%emt
00:00:14]} 11. Bxd8 {[%clk 01:09:55]} {[%emt 00:00:12]} Nxf1 {[%clk 01:13:56]}
{[%emt 00:00:23]} 12. Bc7 {[%clk 01:05:59]} {[%emt 00:04:26]} Ne3 {[%clk
01:06:03]} {[%emt 00:08:23]} 13. Nxc6 {[%clk 01:02:32]} {[%emt 00:03:57]} bxc6
{[%clk 01:06:18]} {[%emt 00:00:14]} 14. Kf2 {[%clk 01:00:52]} {[%emt 00:02:10]}
Nf5 {[%clk 01:02:58]} {[%emt 00:03:50]} 1/2-1/2

[Event "NJSK 2018 Jeugd C"]
[Site "Assen, Netherlands"]
[Date "2018.04.30"]
[Round "2.4"]
[White "Albers, Sasa"]
[Black "Kutchoukov, Daniel"]
[Result "0-1"]
[TimeControl "40/90m+30sec/move"]
[WhiteElo "1336"]
[BlackElo "1902"]

1. e4 {[%clk 01:30:59]} {[%emt 00:00:01]} c6 {[%clk 01:30:57]} {[%emt
00:00:03]} 2. d4 {[%clk 01:31:25]} {[%emt 00:00:05]} d5 {[%clk 01:31:24]}
{[%emt 00:00:03]} 3. e5 {[%clk 01:31:50]} {[%emt 00:00:05]} Bf5 {[%clk
01:31:51]} {[%emt 00:00:03]} 4. Bd3 {[%clk 01:32:12]} {[%emt 00:00:08]} Bxd3
{[%clk 01:32:17]} {[%emt 00:00:04]} 5. Qxd3 {[%clk 01:32:34]} {[%emt 00:00:07]}
e6 {[%clk 01:32:43]} {[%emt 00:00:04]} 6. f4 {[%clk 01:32:43]} {[%emt
00:00:22]} c5 {[%clk 01:31:50]} {[%emt 00:01:23]} 7. c3 {[%clk 01:33:04]}
{[%emt 00:00:08]} Nc6 {[%clk 01:30:27]} {[%emt 00:01:53]} 8. Ne2 {[%clk
01:32:11]} {[%emt 00:01:23]} g6 {[%clk 01:29:41]} {[%emt 00:01:17]} 9. Nd2
{[%clk 01:31:25]} {[%emt 00:01:15]} h5 {[%clk 01:17:58]} {[%emt 00:12:13]} 10.
Nf3 {[%clk 01:28:51]} {[%emt 00:03:05]} Nh6 {[%clk 01:16:52]} {[%emt 00:01:37]}
11. O-O {[%clk 01:20:05]} {[%emt 00:09:15]} Nf5 {[%clk 01:15:17]} {[%emt
00:02:05]} 12. Be3 {[%clk 01:15:02]} {[%emt 00:05:33]} c4 {[%clk 00:57:50]}
{[%emt 00:17:58]} 13. Qd2 {[%clk 01:15:22]} {[%emt 00:00:09]} Be7 {[%clk
00:57:48]} {[%emt 00:00:32]} 14. Ng5 {[%clk 01:07:48]} {[%emt 00:08:04]} O-O
{[%clk 00:52:53]} {[%emt 00:05:25]} 15. Bf2 {[%clk 01:05:36]} {[%emt 00:02:42]}
b5 {[%clk 00:49:51]} {[%emt 00:03:34]} 16. h3 {[%clk 00:57:53]} {[%emt
00:08:13]} h4 {[%clk 00:31:25]} {[%emt 00:18:55]} 17. g4 {[%clk 00:43:26]}
{[%emt 00:14:57]} hxg3 {[%clk 00:31:15]} {[%emt 00:00:40]} 18. Bxg3 {[%clk
00:43:10]} {[%emt 00:00:46]} Kg7 {[%clk 00:23:10]} {[%emt 00:08:35]} 19. Kg2
{[%clk 00:42:35]} {[%emt 00:01:06]} b4 {[%clk 00:17:41]} {[%emt 00:06:00]} 20.
Rh1 {[%clk 00:42:01]} {[%emt 00:01:03]} bxc3 {[%clk 00:17:57]} {[%emt
00:00:14]} 21. bxc3 {[%clk 00:41:33]} {[%emt 00:00:58]} Rb8 {[%clk 00:12:07]}
{[%emt 00:06:20]} 22. h4 {[%clk 00:35:56]} {[%emt 00:06:07]} Qb6 {[%clk
00:12:08]} {[%emt 00:00:30]} 23. h5 {[%clk 00:33:37]} {[%emt 00:02:49]} Qb2
{[%clk 00:12:11]} {[%emt 00:00:27]} 24. Qxb2 {[%clk 00:32:05]} {[%emt
00:02:02]} Rxb2 {[%clk 00:12:26]} {[%emt 00:00:16]} 25. Kf3 {[%clk 00:32:27]}
{[%emt 00:00:07]} Rxe2 {[%clk 00:12:34]} {[%emt 00:00:22]} 26. Bf2 {[%clk
00:19:25]} {[%emt 00:13:31]} Rb2 {[%clk 00:11:18]} {[%emt 00:01:47]} 27. hxg6
{[%clk 00:19:11]} {[%emt 00:00:44]} Bxg5 {[%clk 00:10:38]} {[%emt 00:01:10]} 28.
Rag1 {[%clk 00:16:20]} {[%emt 00:03:21]} fxg6 {[%clk 00:06:47]} {[%emt
00:04:22]} 29. Rxg5 {[%clk 00:16:39]} {[%emt 00:00:10]} Rxa2 {[%clk 00:06:51]}
{[%emt 00:00:26]} 30. Rhg1 {[%clk 00:16:35]} {[%emt 00:00:34]} Nce7 {[%clk
00:07:06]} {[%emt 00:00:16]} 31. Rh5 {[%clk 00:16:01]} {[%emt 00:01:04]} Rh8
{[%clk 00:07:07]} {[%emt 00:00:29]} 32. Rxh8 {[%clk 00:14:28]} {[%emt
00:02:03]} Kxh8 {[%clk 00:07:33]} {[%emt 00:00:01]} 33. Rh1 {[%clk 00:14:00]}
{[%emt 00:01:00]} Kg7 {[%clk 00:07:56]} {[%emt 00:00:07]} 34. Rb1 {[%clk
00:13:21]} {[%emt 00:01:09]} Rc2 {[%clk 00:07:56]} {[%emt 00:00:29]} 35. Be1
{[%clk 00:12:44]} {[%emt 00:01:06]} a5 {[%clk 00:07:31]} {[%emt 00:00:56]} 36.
Rb7 {[%clk 00:12:28]} {[%emt 00:00:45]} Rc1 {[%clk 00:07:19]} {[%emt 00:00:42]}
37. Bd2 {[%clk 00:12:17]} {[%emt 00:00:42]} Ra1 {[%clk 00:07:30]} {[%emt
00:00:19]} 38. Be3 {[%clk 00:12:05]} {[%emt 00:00:41]} Ra3 {[%clk 00:04:59]}
{[%emt 00:00:29]} 39. Bd2 {[%clk 00:11:26]} {[%emt 00:01:08]} Nxd4+ {[%clk
00:07:49]} {[%emt 00:00:13]} 40. Kg4 {[%clk 00:11:27]} {[%emt 00:00:29]} Ndc6
{[%clk 00:08:02]} {[%emt 00:00:17]} 41. Be1 {[%clk 00:11:36]} {[%emt 00:00:21]}
Rb3 {[%clk 00:08:19]} {[%emt 00:00:13]} 42. Rc7 {[%clk 00:11:46]} {[%emt
00:00:20]} a4 {[%clk 00:08:26]} {[%emt 00:00:23]} 43. Bh4 {[%clk 00:11:56]}
{[%emt 00:00:19]} Kf8 {[%clk 00:08:44]} {[%emt 00:00:13]} 44. Kg5 {[%clk
00:11:45]} {[%emt 00:00:41]} a3 {[%clk 00:08:56]} {[%emt 00:00:18]} 45. Kf6
{[%clk 00:11:57]} {[%emt 00:00:17]} a2 {[%clk 00:09:15]} {[%emt 00:00:12]} 46.
Kxe6 {[%clk 00:12:00]} {[%emt 00:00:27]} a1=Q {[%clk 00:09:34]} {[%emt
00:00:11]} 47. Bxe7+ {[%clk 00:12:14]} {[%emt 00:00:16]} Nxe7 {[%clk 00:10:01]}
{[%emt 00:00:04]} 48. Rxe7 {[%clk 00:12:09]} {[%emt 00:00:34]} Rb6+ {[%clk
00:10:11]} {[%emt 00:00:21]} 49. Kd7 {[%clk 00:12:19]} {[%emt 00:00:20]} Qa7+
{[%clk 00:10:35]} {[%emt 00:00:06]} 50. Kc8 {[%clk 00:12:37]} {[%emt 00:00:11]}
Rb8# {[%clk 00:11:00]} {[%emt 00:00:06]} 0-1